{"text_format":"2","workbook":"xlsx","n_sheets":3,"sheets":["Приложение 1","Приложение 2","Приложение 3"],"not_rendered":{"charts":0,"images":0,"macros":0,"external_links":1,"defined_names":20,"comments":0,"pivot_tables":0},"unopened":[],"bounds":{"document_bytes":16777216,"sheet_cells":100000,"run_cost":"one","rows_first":2000,"rows_last":500,"rows_between":2000,"halvings":0,"cell_chars":16384,"cell_head_chars":4096},"cells_cut":0,"cells_raw":0,"read":"whole","date_system":"1900"}

{"sheet":"Приложение 1","index":0,"n_rows":16,"n_cols":26,"rows_kept":16,"cut":false,"hidden":false,"merged":[[6,21,8,21],[6,22,6,25],[7,18,7,20],[7,23,7,25],[15,0,15,1],[14,0,14,1],[13,0,13,1],[12,0,12,1],[11,1,11,25],[7,17,8,17],[6,9,6,12],[6,13,6,15],[6,16,8,16],[6,17,6,20],[2,22,2,25],[3,0,3,25],[7,22,8,22],[0,24,0,25],[4,0,4,25],[6,0,9,0],[6,1,9,1],[6,2,6,5],[6,6,8,6],[6,7,8,7],[6,8,8,8],[7,2,8,2],[7,3,7,5],[7,9,8,9],[7,10,7,12],[7,13,7,15]]}
[]
[]
[{"$nulls":22},"Приложение № 1 к краткосрочному плану, утвержденному постановлением администрации Княгининского муниципального района Нижегородской области                 от 03.06.2022 № 403"]
["Краткосрочный план реализации региональной адресной программы по проведению капитального ремонта общего имущества в многоквартирных домах, расположенных на территории Нижегородской области, в отношении многоквартирных домов, расположенных на территории Княгининского муниципального района, на 2020-2022 годы"]
[]
[{"$nulls":24},"Таблица 1"]
["№п/п","Наименование муниципального района (городского округа)","Общая площадь жилых и нежилых помещений в МКД, участвующих в региональной программе капитального ремонта общего имущества в многоквартирных домах, расположенных на территории Нижегородской области",null,null,null,"Общая площадь жилых и нежилых помещений, выбывших из региональной программы ","Общая площадь жилых и нежилых помещений, вновь включенных в региональную программу "," размер взноса на капитальный ремонт МКД","Планируемый объем начислений в месяц",null,null,null,"Планируемый процент сбора взносов на капитальный ремонт ",null,null,"Доля, направленная на капитальный ремонт всоответствии со ст. 32 Закона Нижегородской области  от 28.11.2013 № 159-З (счет у регионального оператора РО)","Планируемые средства государственной и муниципальной поддержки",null,null,null,"Остаток средств, неиспользованных региональным оператором в предыдущем году**","Планируемые средства на капитальный ремонт "]
[null,null,"Всего","в  том числе",{"$nulls":5},"Всего","в том числе",null,null,"в том числе",null,null,null,"Всего","в том числе",null,null,null,"Всего средств на капитальный ремонт по Нижегородской области (столбец 18+столбец 24 + столбец 25 + столбец 26)","в том числе"]
[null,null,null,"у регионального оператора (РО)*","на спец. счете у регионального оператора (СчРО)","на спец. счете ТСЖ/ЖК/УО",{"$nulls":4},"Объем  начисления  (столбец 4 х столбец 9) (счет у регионального оператора РО)","Объем  начисления  (столбец 5 х столбец 9) (спец.счет у регионального оператора СчРО","Объем  начисления  (столбец 6 х столбец 9) (спец.счета ТСЖ/ЖК/УО)","На счете у регионального оператора (РО)"," На спец.счете у регионального оператора (СчРО)","На спец. счетах  ТСЖ/ЖК/УО",null,null,"за счет средств Фонда содействия реформированию ЖКХ","за счет средств бюджета субъекта Российской Федерации","за счет средств местного бюджета",null,null,"На счете у регионального оператора (РО) (столбец 11 х столбец 14 х столбец 17 х  12 мес) + столбец 22","На спец. счете у регионального оператора (СчРО) (столбец 12 х столбец 15  х  12 мес)  (по МКД включенных в краткосрочный план)"," На специальных счетах ТСЖ/ЖК/УО (столбец 13 х столбец 16  х  12 мес)  (по МКД, включенных в краткосрочный план)"]
[null,null,"кв.м ","кв.м ","кв.м ","кв.м ","кв.м ","кв.м ","руб.","руб.","руб.","руб.","руб.","%","%","%","%","руб.","руб.","руб.","руб.","руб.","руб.","руб.","руб.","руб."]
[1,2,3,4,5,6,7,8,9,10,11,12,13,14,15,16,17,18,19,20,21,22,23,24,25,26]
[20,"Княгининский муниципальный район"]
["Всего по Княгининскому муниципальному району на 2020-2022 годы",{"$nulls":20},6054831,25667967,25667967]
["Итого на 2020 год",null,99586.900000000038,97129.100000000035,2457.8000000000002,0,null,null,6.3,627397,611913,15484,0,91.9,50.1,null,95,{"$nulls":4},5377262,11788030,11788030]
["Итого на 2021 год",null,98951.4,96493.599999999991,2457.8000000000002,0,null,null,6.55,648132,632033,16099,0,89.7,56.8,null,95,{"$nulls":4},337409,6800453,6800453]
["Итого на 2022 год",null,98951.4,96493.599999999991,2457.8000000000002,0,null,null,6.83,675838,659051,16787,0,89.7,56.8,null,95,{"$nulls":4},340160,7079484,7079484]

{"sheet":"Приложение 2","index":1,"n_rows":26,"n_cols":25,"rows_kept":26,"cut":false,"hidden":false,"merged":[[1,4,1,18],[1,20,1,24],[16,0,16,1],[9,0,9,1],[10,0,10,1],[13,0,13,1],[3,15,3,18],[3,10,5,10],[3,11,5,11],[3,12,5,12],[3,14,5,14],[3,19,5,19],[3,20,3,23],[4,15,5,15],[4,16,5,16],[4,17,5,17],[4,18,5,18],[4,20,5,20],[4,21,5,21],[4,22,5,22],[4,23,5,23],[0,0,0,24],[2,0,6,0],[2,1,6,1],[2,2,6,2],[2,3,6,3],[2,4,6,4],[2,5,6,5],[2,6,6,6],[2,7,6,7],[2,8,6,8],[2,9,2,12],[2,13,5,13],[2,14,2,18],[2,19,2,23],[2,24,5,24],[3,9,5,9]]}
[]
[{"$nulls":4},"Перечень многоквартирных домов, подлежащих капитальному  ремонту в рамках краткосрочного плана реализации региональной адресной программы по проведению капитального ремонта общего имущества в многоквартирных домах, расположенных на территории\nНижегородской области, в отношении многоквартирных домов, расположенных на территории Княгининского муниципального района, на период 2020-2022 гг.\n",{"$nulls":15},"Приложение № 2 к краткосрочносу плану, утвержденному постановлением администрации Княгининского муниципального района Нижегородской области                                от 03.06.2022 № 403"]
["№ п/п","Адрес МКД","Год ввода в эксплуатацию","Завершение последнего капитального ремонта","Способ формирования Фонда: спецсчет - ТСЖ/ЖК/УО;спецсчет у рег. оператора - СчРО;счет рег. Оператора - РО","Материал стен","Кол-во этажей","Кол-во подъездов","Общая площадь МКД, всего","Площадь помещений МКД:",null,null,null,"Количество жителей, зарегистрированных в МКД на дату утверждения краткосрочного плана","Источники финансирования капитального ремонта",{"$nulls":4},"Стоимость капитального ремонта",{"$nulls":4},"Плановая дата завершения работ"]
[{"$nulls":9},"Всего:","Жилых помещений ","Нежилых помещений ","В том числе жилых помещений, находящихся в собственности граждан",null,"Всего:","в том числе:",null,null,null,"Всего:","в том числе:"]
[{"$nulls":15},"За счет средств Фонда содействия реформированию ЖКХ","За счет средств бюджета субъекта РФ","За счет средств местного бюджета","За счет средств собственников помещений в МКД",null,"Стоимость строительно-монтажных работ (СМР) ","Стоимость проектных работ  (ПИР)","Стоимость затрат на осуществление строительного контроля (технического надзора), авторского надзора применительно к объектам культурного наследия","Иные виды работ и услуг по капитальному ремонту, предусмотренные ст.20 Закона НО от 28.11.2013 №159-З"]
[]
[{"$nulls":8},"кв.м","кв.м","кв.м","кв.м","кв.м","чел.","руб.","руб","руб.","руб.","руб.","руб.","руб.","руб.","руб.","руб","мм.гггг"]
[1,2,3,4,5,6,7,8,9,10,11,12,13,14,15,16,17,18,19,20,21,22,23,24,25]
[20,"Княгининский муниципальный район"]
["Всего по Княгининскому муниципальному  району на 2020-2022 годы",null,"","","","","","",{"$f":"I11+I14+I17","v":8641.7999999999993},{"$f":"J11+J14+J17","v":7756.4},7756.4,null,7465.0999999999995,404,33215599,null,null,null,33215599,33215599,31637782,1577817,0]
["Итого по МО на период 2020 год",null,"","","","","","",{"$f":"SUM(I12:I13)","v":1721.47},{"$f":"SUM(J12:J13)","v":1539.1999999999998},1539.1999999999998,null,1496.1,70,379044,null,null,null,379044,379044,0,379044,0]
[1,"г Княгинино, ул Октябрьская, д 21",1972,"не было","РО","К",2,2,790.2,729.4,729.4,null,729.4,29,{"$f":"S12","v":250949},null,null,null,{"$f":"T12","v":250949},{"$f":"'Приложение 3'!D12","v":250949},{"$f":"'Приложение 3'!E12","v":0},{"$f":"'Приложение 3'!AF12","v":250949},{"$f":"'Приложение 3'!AK12","v":0},null,"12.2020"]
[2,"г. Княгинино, ул. Октябрьская, д. 2",1978,"не было","РО","К",2,2,931.27,809.8,809.8,null,766.7,41,128095,null,null,null,128095,{"$f":"'Приложение 3'!D13","v":128095},{"$f":"'Приложение 3'!E13","v":0},{"$f":"'Приложение 3'!AF13","v":128095},{"$f":"'Приложение 3'!AK13","v":0},null,"12.2020"]
["Итого по МО на период 2021 год",null,"","","","","","",{"$f":"SUM(I15:I16)","v":1721.47},{"$f":"SUM(J15:J16)","v":1539.1999999999998},1539.1999999999998,null,1496.1,70,2636572,null,null,null,2636572,2636572,2548316,88256,0]
[3,"г Княгинино, ул Октябрьская, д 21",1972,"не было","РО","К",2,2,790.2,729.4,729.4,null,729.4,29,{"$f":"S15","v":2548316},null,null,null,{"$f":"T15","v":2548316},{"$f":"'Приложение 3'!D15","v":2548316},{"$f":"'Приложение 3'!E15","v":2548316},{"$f":"'Приложение 3'!AF15","v":0},{"$f":"'Приложение 3'!AK15","v":0},null,"12.2021"]
[4,"г. Княгинино, ул. Октябрьская, д. 2",1980,"не было","РО","К",2,2,931.27,809.8,809.8,null,766.7,41,88256,null,null,null,88256,{"$f":"'Приложение 3'!D16","v":88256},{"$f":"'Приложение 3'!E16","v":0},{"$f":"'Приложение 3'!AF16","v":88256},{"$f":"'Приложение 3'!AK16","v":0},null,"12.2021"]
["Итого по МО на период 2022 год",{"$nulls":7},{"$f":"SUM(I18:I26)","v":5198.8599999999997},{"$f":"SUM(J18:J26)","v":4678},4678,null,4472.8999999999996,264,30199983,null,null,null,30199983,30199983,29089466,1110517,0]
[5,"г. Княгинино, ул. Октябрьская, д. 2",1980,"не было","РО","К",2,2,931.27,809.8,809.8,null,766.7,41,{"$f":"S18","v":6768963},null,null,null,{"$f":"T18","v":6768963},{"$f":"'Приложение 3'!D18","v":6768963},{"$f":"'Приложение 3'!E18","v":6768963},{"$f":"'Приложение 3'!AF18","v":0},{"$f":"'Приложение 3'!AK18","v":0},null,"12.2022"]
[6,"г. Княгинино, ул. Октябрьская, д. 31",1980,"не было","РО","К",2,1,385.7,361.2,361.2,null,361.2,66,3515071,null,null,null,3515071,{"$f":"'Приложение 3'!D19","v":3515071},{"$f":"'Приложение 3'!E19","v":3300536},{"$f":"'Приложение 3'!AF19","v":214535},{"$f":"'Приложение 3'!AK19","v":0},null,"12.2022"]
[7,"г. Княгинино, ул. Октябрьская, д. 10",1975,"не было","РО","К",2,2,601.1,551.29999999999995,551.29999999999995,null,551.29999999999995,21,6565916,null,null,null,6565916,{"$f":"'Приложение 3'!D20","v":6565916},{"$f":"'Приложение 3'!E20","v":6165179},{"$f":"'Приложение 3'!AF20","v":400737},{"$f":"'Приложение 3'!AK20","v":0},null,"12.2022"]
[8,"г.Княгинино, пер.Советский, д.4",1956,"не было","РО","К",2,2,421,375,375,null,375,10,63976,null,null,null,63976,{"$f":"'Приложение 3'!D21","v":63976},{"$f":"'Приложение 3'!E21","v":63976},{"$f":"'Приложение 3'!AF21","v":0},{"$f":"'Приложение 3'!AK21","v":0},null,"12.2022"]
[9,"г.Княгинино, ул.Октябрьская, д.7",1966,"не было","РО","К",2,2,417.4,372.2,372.2,null,372.2,15,51749,null,null,null,51749,{"$f":"'Приложение 3'!D22","v":51749},{"$f":"'Приложение 3'!E22","v":51749},{"$f":"'Приложение 3'!AF22","v":0},{"$f":"'Приложение 3'!AK22","v":0},null,"12.2022"]
[10,"г. Княгинино, пер. Почтовый, д. 4",1917,"не было","РО","К",2,1,314.60000000000002,273.7,273.7,null,240.1,15,2414851,null,null,null,2414851,{"$f":"'Приложение 3'!D23","v":2414851},{"$f":"'Приложение 3'!E23","v":2267465},{"$f":"'Приложение 3'!AF23","v":147386},{"$f":"'Приложение 3'!AK23","v":0},null,"12.2022"]
[11,"г. Княгинино, ул. Урицкого, д. 4",1917,"не было","РО","К",2,2,573.39,498.6,498.6,null,370.2,31,3975452,null,null,null,3975452,{"$f":"'Приложение 3'!D24","v":3975452},{"$f":"'Приложение 3'!E24","v":3732818},{"$f":"'Приложение 3'!AF24","v":242634},{"$f":"'Приложение 3'!AK24","v":0},null,"12.2022"]
[12,"г Княгинино, ул Октябрьская, д 21",1972,"не было","РО","К",2,2,790.2,729.4,729.4,null,729.4,29,4650556,null,null,null,4650556,{"$f":"'Приложение 3'!D25","v":4650556},{"$f":"'Приложение 3'!E25","v":4650556},{"$f":"'Приложение 3'!AF25","v":0},{"$f":"'Приложение 3'!AK25","v":0},null,"12.2022"]
[13,"г. Княгинино, ул. Октябрьская, д. 24",1974,"не было","РО","К",2,2,764.2,706.8,706.8,null,706.8,36,{"$f":"S26","v":2193449},null,null,null,{"$f":"T26","v":2193449},{"$f":"'Приложение 3'!D26","v":2193449},{"$f":"'Приложение 3'!E26","v":2088224},{"$f":"'Приложение 3'!AF26","v":105225},{"$f":"'Приложение 3'!AK26","v":0},null,"12.2022"]

{"sheet":"Приложение 3","index":2,"n_rows":26,"n_cols":38,"rows_kept":26,"cut":false,"hidden":false,"merged":[[1,6,1,25],[1,32,1,37],[13,1,13,2],[16,1,16,2],[0,1,0,37],[4,34,5,34],[4,35,5,35],[5,6,5,7],[5,8,5,9],[5,10,5,11],[5,12,5,13],[5,14,5,15],[5,16,5,17],[4,26,5,26],[4,27,5,28],[4,29,5,29],[4,18,5,19],[4,22,5,23],[4,24,5,25],[9,1,9,2],[2,36,5,36],[4,20,5,21],[10,1,10,2],[2,37,5,37],[2,3,5,3],[2,1,6,1],[2,2,6,2],[3,4,5,4],[3,5,3,30],[3,31,5,31],[3,32,3,35],[2,5,2,30],[2,31,2,35],[4,30,5,30],[4,32,5,32],[4,33,5,33],[4,5,5,5],[4,6,4,17]]}
[]
[{"$nulls":6},"Перечень многоквартирных домов, подлежащих капитальному  ремонту в рамках краткосрочного плана реализации региональной адресной программы по проведению капитального ремонта общего имущества в многоквартирных домах, расположенных на территории\nНижегородской области, в отношении многоквартирных домов, расположенных на территории Княгининского муниципального района, на период 2020-2022 гг.",{"$nulls":25},"Приложение № 3 к краткосрочному плану, утвержденному постановлением администрации Княгининского муниципального района Нижегородской области от 03.06.2022 № 403"]
[null,"№ п/п","Адрес МКД","ВСЕГО стоимость капитального ремонта                                                           (столбец 4 +столбец 31+ столбец 36 + столбец 37)",null,"СМР",{"$nulls":25},"ПИР",{"$nulls":4},"Осуществление строительного контроля (технического надзора), авторского надзора применительно к объектам культурного наследия ","Иные виды работ и услуг по капитальному ремонту, предусмотренные ст.20 Закона НО от 28.11.2013 №159-З"]
[{"$nulls":4},"Всего стоимость капитального ремонта СМР","в том числе",{"$nulls":25},"Всего ПИР","в том числе"]
[{"$nulls":5},"Всего  ремонт внутридомовых инженерных систем ","в том числе",{"$nulls":11},"Ремонт или замена лифтового оборудования, признанного непригодным для эксплуатации или отработавшего нормативный срок эксплуатации, ремонт лифтовых шахт",null,"Ремонт крыши",null,"Ремонт подвальных помещений, относящихся к общему имуществу в МКД",null,"Ремонт фасада и (или) осуществляемое в соответствии с ч.3 ст.20 Закона НО от 28.11.2013 №159-З утепление фасада",null,"Замена признанных непригодными к применению коллективных (общедомовых) приборов учёта потребления ресурсов, необходимых для предоставления коммунальных услуг (тепловой энергии, гороячей и холодной воды, электрической энергии, газ)  (ПУ)","Ремонт фундамента МКД",null,"Установка или замена признанных непригодными к применению узлов управления и регулирования потребления ресурсов, необходимых для предоставлениякоммунальных услуг (тепловой энергии, гороячей и холодной воды, электрической энергии, газ) (УУ, УР)","Ремонт системы дымоудаления ",null,"Разработка проектной, научено-проектной  (применительно к объектам культурного наследия (памятникам истории и культуры) народов РФ) документации для капитального ремонта, сметной документации на выполнение работ и (или) услуг по капитальному ремонту","Проведение экспертизы проектной и (или) сметной документации в соответствии с законодательством РФ","Обследование технического состояния МКДи (или) элементов МКД и (или) инженерных систем МКД","Инженерные изыскания, проводимые специализированной организацией"]
[{"$nulls":6},"электроснабжение",null,"теплоснабжение",null,"газоснабжение",null,"холодное водоснабжение ",null,"горячее водоснабжение",null,"водоотведение"]
[null,null,null,"руб.","руб.","руб.","м","руб.","м","руб.","м","руб.","м","руб.","м","руб.","м","руб.","ед.","руб.","кв.м.","руб.","кв.м.","руб.","кв.м.","руб.","руб.","куб.м.","руб.","руб.","руб","руб.","руб.","руб","руб.","руб.","руб.","руб"]
["Год",1,2,3,4,5,6,7,8,9,10,11,12,13,14,15,16,17,18,19,20,21,22,23,24,25,26,27,28,29,30,31,32,33,34,35,36,37]
[null,20,"Княгининский муниципальный район"]
[null,"Всего по Княгининскому муниципальному  району на 2020-2022 годы",null,{"$f":"D11+D14+D17","v":33215599},{"$f":"E11+E14+E17","v":31637782},8557628,811,1285383,1366,4874968,135,1074202,193,687116,null,null,275,635959,null,null,5020,11206830,385,160436,2799,8720302,null,141.30000000000001,2992586,null,null,1577817,1577817,null,null,null,0]
[null,"Итого по МО на период 2020 год",null,{"$f":"SUM(D12:D13)","v":379044},{"$f":"SUM(E12:E13)","v":0},0,0,0,0,0,0,0,0,0,null,null,0,0,null,null,0,0,0,0,0,0,null,0,0,null,null,379044,379044,null,null,null,0]
[2020,1,"г Княгинино, ул Октябрьская, д 21",{"$f":"E12+AF12+AK12","v":250949},{"$f":"F12+T12+V12+X12+Z12+AA12+AC12+AD12+AE12","v":0},{"$f":"H12+J12+L12+N12+P12+R12","v":0},{"$nulls":25},{"$f":"AG12+AH12+AI12+AJ12","v":250949},250949]
[2020,2,"г. Княгинино, ул. Октябрьская, д. 2",128095,0,0,{"$nulls":25},128095,128095]
[null,"Итого по МО на период 2021 год",null,{"$f":"SUM(D15:D16)","v":2636572},{"$f":"SUM(E15:E16)","v":2548316},904356,0,0,0,619460,0,0,0,121761,null,null,0,163135,null,null,0,0,0,0,0,1643960,null,0,0,null,null,88256,88256,null,null,null,0]
[2021,3,"г Княгинино, ул Октябрьская, д 21",{"$f":"E15+AF15+AK15","v":2548316},{"$f":"F15+T15+V15+X15+Z15+AA15+AC15+AD15+AE15","v":2548316},{"$f":"H15+J15+L15+N15+P15+R15","v":904356},null,null,"2000,80",619460,null,null,"49,15",121761,null,null,"54,80",163135,{"$nulls":6},"852,00",1643960,{"$nulls":5},{"$f":"AG15+AH15+AI15+AJ15","v":0},{"$nulls":4},0]
[2021,4,"г. Княгинино, ул. Октябрьская, д. 2",88256,0,0,{"$nulls":25},88256,88256]
[null,"Итого по МО на период 2022 год",null,{"$f":"SUM(D18:D26)","v":30199983},{"$f":"SUM(E18:E26)","v":29089466},7653272,811,1285383,1366,4255508,135,1074202,193,565355,null,null,275,472824,null,null,5020,11206830,385,160436,2799,7076342,null,141.30000000000001,2992586,null,null,1110517,1110517,null,null,null,0]
[2022,5,"г. Княгинино, ул. Октябрьская, д. 2",{"$f":"E18+AF18+AK18","v":6768963},{"$f":"F18+T18+V18+X18+Z18+AA18+AC18+AD18+AE18","v":6768963},{"$f":"H18+J18+L18+N18+P18+R18","v":2543862},268,345211,494,1358481,44,420208,58,210872,null,null,129,209090,null,null,1190,1668076,null,null,910,2018023,null,35,539002,null,null,{"$f":"AG18+AH18+AI18+AJ18","v":0},{"$nulls":4},0]
[2022,6,"г. Княгинино, ул. Октябрьская, д. 31",3515071,3300536,1095447,119,153871,220,610392,20,143866,26,94056,null,null,58,93262,null,null,530,871250,null,null,405,1093424,null,16,240415,null,null,214535,214535,null,null,null,0]
[2022,7,"г. Княгинино, ул. Октябрьская, д. 10",6565916,6165179,1755300,182,234485,335,986058,31,219583,40,144702,null,null,88,170472,null,null,807,1609891,null,null,617,1665784,null,24,1134204,null,null,400737,400737,null,null,null,0]
[2022,8,"г.Княгинино, пер.Советский, д.4",63976,63976,63976,{"$nulls":6},37,63976,{"$nulls":17},0,{"$nulls":4},0]
[2022,9,"г.Княгинино, ул.Октябрьская, д.7",51749,51749,51749,{"$nulls":6},32,51749,{"$nulls":17},0,{"$nulls":4},0]
[2022,10,"г. Княгинино, пер. Почтовый, д. 4",2414851,2267465,462525,null,null,167,462525,{"$nulls":10},402,737340,136,56858,307,828568,null,12,182174,null,null,147386,147386,null,null,null,0]
[2022,11,"г. Княгинино, ул. Урицкого, д. 4",3975452,3732818,838052,null,null,150,838052,{"$nulls":10},366,909401,249,103578,560,1470543,null,22,411244,null,null,242634,242634,null,null,null,0]
[2022,12,"г Княгинино, ул Октябрьская, д 21",4650556,4650556,842361,242,551816,null,null,40,290545,{"$nulls":8},733,3322648,{"$nulls":5},32.299999999999997,485547,null,null,0,{"$nulls":4},0]
[2022,13,"г. Княгинино, ул. Октябрьская, д. 24",{"$f":"E26+AF26+AK26","v":2193449},{"$f":"F26+T26+V26+X26+Z26+AA26+AC26+AD26+AE26","v":2088224},{"$f":"H26+J26+L26+N26+P26+R26","v":0},{"$nulls":14},992,2088224,{"$nulls":9},{"$f":"AG26+AH26+AI26+AJ26","v":105225},105225,null,null,null,0]